[Event "Titled Tuesday Blitz December 20 Early 2022"]
[White "Kopylov_Alex"]
[Black "Mone, Ved"]
[BlackFideId "25666290"]
[WhiteElo "2790"]
[BlackElo "1254"]
[Result "0-1"]
[Round "05"]
[TimeControl "180+2"]
[Date "2022.12.20"]
[WhiteClock "0:01:14"]
[BlackClock "0:01:16"]

1. e4 {[%clk 0:03:00]}  c5 {[%clk 0:02:59]} 2. Nf3 {[%clk 0:03:01]}  d6 {[%clk 0:02:54]} 3. Bb5+ {[%clk 0:03:01]}  Nd7 {[%clk 0:02:54]} 4. O-O {[%clk 0:03:01]}  Nf6 {[%clk 0:02:54]} 5. e5 {[%clk 0:03:00]}  dxe5 {[%clk 0:02:53]} 6. Nxe5 {[%clk 0:03:01]}  a6 {[%clk 0:02:54]} 7. Bxd7+ {[%clk 0:03:00]}  Nxd7 {[%clk 0:02:52]} 8. Nf3 {[%clk 0:02:58]}  Nf6 {[%clk 0:02:48]} 9. b3 {[%clk 0:02:55]}  Bg4 {[%clk 0:02:47]} 10. Bb2 {[%clk 0:02:55]}  e6 {[%clk 0:02:47]} 11. d3 {[%clk 0:02:55]}  Bd6 {[%clk 0:02:45]} 12. Nbd2 {[%clk 0:02:55]}  O-O {[%clk 0:02:45]} 13. Qe1 {[%clk 0:02:55]}  Nd5 {[%clk 0:02:36]} 14. Ne5 {[%clk 0:02:53]}  Bf5 {[%clk 0:02:31]} 15. f4 {[%clk 0:02:53]}  Nb4 {[%clk 0:02:29]} 16. Qd1 {[%clk 0:02:42]}  b5 {[%clk 0:02:24]} 17. a3 {[%clk 0:02:42]}  Nd5 {[%clk 0:02:23]} 18. Ne4 {[%clk 0:01:46]}  Ne3 {[%clk 0:02:17]} 19. Qh5 {[%clk 0:01:46]}  Nxf1 {[%clk 0:02:09]} 20. Nxd6 {[%clk 0:01:44]}  Qxd6 {[%clk 0:02:06]} 21. Rxf1 {[%clk 0:01:44]}  c4 {[%clk 0:01:49]} 22. Rf3 {[%clk 0:01:42]}  cxd3 {[%clk 0:01:48]} 23. Nxd3 {[%clk 0:01:39]}  Rac8 {[%clk 0:01:39]} 24. Bxg7 {[%clk 0:01:23]}  Kxg7 {[%clk 0:01:33]} 25. Rh3 {[%clk 0:01:21]}  Qd4+ {[%clk 0:01:25]} 26. Nf2 {[%clk 0:01:17]}  Rxc2 {[%clk 0:01:20]} 27. Qh6+ {[%clk 0:01:15]}  Kg8 {[%clk 0:01:17]} 28. Rg3+ {[%clk 0:01:14]}  Bg6 {[%clk 0:01:17]} 29. Rf3 {[%clk 0:01:14]}  Rc1# {[%clk 0:01:16]} 0-1


[Site "https://www.chess.com"]

[Event "Titled Tuesday Blitz December 20 Early 2022"]
[White "Kotofeyca"]
[Black "MusicCityMaster"]
[WhiteElo "2372"]
[BlackElo "2329"]
[Result "1-0"]
[Round "05"]
[TimeControl "180+2"]
[Date "2022.12.20"]
[WhiteClock "0:00:11"]
[BlackClock "0:00:14"]

1. d4 {[%clk 0:01:55]}  Nf6 {[%clk 0:02:55]} 2. c4 {[%clk 0:01:55]}  c5 {[%clk 0:02:56]} 3. Nf3 {[%clk 0:01:55]}  cxd4 {[%clk 0:02:55]} 4. Nxd4 {[%clk 0:01:56]}  e5 {[%clk 0:02:55]} 5. Nb5 {[%clk 0:01:55]}  d5 {[%clk 0:02:55]} 6. cxd5 {[%clk 0:01:56]}  Bc5 {[%clk 0:02:54]} 7. d6 {[%clk 0:01:56]}  O-O {[%clk 0:02:20]} 8. Nc7 {[%clk 0:01:55]}  Ne4 {[%clk 0:02:16]} 9. e3 {[%clk 0:01:55]}  Nxd6 {[%clk 0:02:07]} 10. Nxa8 {[%clk 0:01:54]}  Nc6 {[%clk 0:02:06]} 11. Nc3 {[%clk 0:01:48]}  Be6 {[%clk 0:02:06]} 12. a3 {[%clk 0:01:23]}  a5 {[%clk 0:02:00]} 13. Nb5 {[%clk 0:01:12]}  Nxb5 {[%clk 0:01:56]} 14. Qxd8 {[%clk 0:01:11]}  Rxd8 {[%clk 0:01:57]} 15. Bxb5 {[%clk 0:01:11]}  Rxa8 {[%clk 0:01:57]} 16. Bd2 {[%clk 0:01:06]}  Bd5 {[%clk 0:01:54]} 17. f3 {[%clk 0:01:02]}  e4 {[%clk 0:01:54]} 18. f4 {[%clk 0:00:59]}  f5 {[%clk 0:01:43]} 19. Rc1 {[%clk 0:00:59]}  Bb6 {[%clk 0:01:37]} 20. Bc4 {[%clk 0:00:59]}  Rd8 {[%clk 0:01:36]} 21. Ke2 {[%clk 0:00:58]}  Bxc4+ {[%clk 0:01:33]} 22. Rxc4 {[%clk 0:00:57]}  Rd3 {[%clk 0:01:33]} 23. Rc3 {[%clk 0:00:53]}  Rd7 {[%clk 0:01:30]} 24. Rb3 {[%clk 0:00:48]}  Ba7 {[%clk 0:01:26]} 25. Rb5 {[%clk 0:00:48]}  g6 {[%clk 0:01:25]} 26. Bxa5 {[%clk 0:00:41]}  Rd3 {[%clk 0:01:11]} 27. Bd2 {[%clk 0:00:40]}  b6 {[%clk 0:00:59]} 28. Rc1 {[%clk 0:00:39]}  Rd6 {[%clk 0:00:57]} 29. Bc3 {[%clk 0:00:32]}  Kf7 {[%clk 0:00:53]} 30. Rd1 {[%clk 0:00:30]}  Ke6 {[%clk 0:00:52]} 31. Be5 {[%clk 0:00:25]}  Rxd1 {[%clk 0:00:50]} 32. Kxd1 {[%clk 0:00:26]}  Na5 {[%clk 0:00:48]} 33. b3 {[%clk 0:00:23]}  Nc6 {[%clk 0:00:44]} 34. Kc2 {[%clk 0:00:24]}  g5 {[%clk 0:00:37]} 35. Kc3 {[%clk 0:00:24]}  gxf4 {[%clk 0:00:36]} 36. Bxf4 {[%clk 0:00:25]}  h5 {[%clk 0:00:32]} 37. Kc4 {[%clk 0:00:24]}  Na5+ {[%clk 0:00:31]} 38. Kd4 {[%clk 0:00:21]}  Nc6+ {[%clk 0:00:31]} 39. Kc3 {[%clk 0:00:20]}  Ne7 {[%clk 0:00:31]} 40. Re5+ {[%clk 0:00:19]}  Kf6 {[%clk 0:00:31]} 41. Kc4 {[%clk 0:00:17]}  Bb8 {[%clk 0:00:31]} 42. Rb5 {[%clk 0:00:16]}  Ba7 {[%clk 0:00:30]} 43. b4 {[%clk 0:00:14]}  Ke6 {[%clk 0:00:28]} 44. h4 {[%clk 0:00:14]}  Ng6 {[%clk 0:00:27]} 45. g3 {[%clk 0:00:13]}  Ne7 {[%clk 0:00:24]} 46. Re5+ {[%clk 0:00:12]}  Kf6 {[%clk 0:00:22]} 47. Bg5+ {[%clk 0:00:13]}  Kxe5 {[%clk 0:00:23]} 48. Bxe7 {[%clk 0:00:12]}  b5+ {[%clk 0:00:23]} 49. Kxb5 {[%clk 0:00:10]}  Bxe3 {[%clk 0:00:24]} 50. Kc4 {[%clk 0:00:10]}  Ke6 {[%clk 0:00:23]} 51. Bd8 {[%clk 0:00:09]}  Bf2 {[%clk 0:00:24]} 52. Bc7 {[%clk 0:00:08]}  e3 {[%clk 0:00:23]} 53. Kd3 {[%clk 0:00:08]}  Kd5 {[%clk 0:00:20]} 54. a4 {[%clk 0:00:08]}  Be1 {[%clk 0:00:18]} 55. b5 {[%clk 0:00:07]}  Bd2 {[%clk 0:00:18]} 56. Bf4 {[%clk 0:00:07]}  Be1 {[%clk 0:00:14]} 57. Kxe3 {[%clk 0:00:06]}  Kc5 {[%clk 0:00:14]} 58. Kd3 {[%clk 0:00:06]}  Kb6 {[%clk 0:00:12]} 59. Kc4 {[%clk 0:00:06]}  Ka5 {[%clk 0:00:12]} 60. Kb3 {[%clk 0:00:06]}  Bf2 {[%clk 0:00:11]} 61. Bc7+ {[%clk 0:00:06]}  Bb6 {[%clk 0:00:10]} 62. Bxb6+ {[%clk 0:00:07]}  Kxb6 {[%clk 0:00:11]} 63. Kb4 {[%clk 0:00:07]}  Kb7 {[%clk 0:00:11]} 64. a5 {[%clk 0:00:08]}  Kc7 {[%clk 0:00:11]} 65. Kc5 {[%clk 0:00:09]}  Kb7 {[%clk 0:00:12]} 66. b6 {[%clk 0:00:09]}  Ka6 {[%clk 0:00:12]} 67. Kc6 {[%clk 0:00:09]}  Kxa5 {[%clk 0:00:13]} 68. b7 {[%clk 0:00:10]}  Kb4 {[%clk 0:00:13]} 69. b8=Q+ {[%clk 0:00:11]}  Kc4 {[%clk 0:00:14]} 70. Qf4+ {[%clk 0:00:11]} 1-0


[Site "https://www.chess.com"]

[Event "Titled Tuesday Blitz December 20 Early 2022"]
[White "KubaGepard"]
[Black "Groz, Jacky"]
[BlackFideId "626643"]
[WhiteElo "2594"]
[BlackElo "2052"]
[Result "0-1"]
[Round "05"]
[TimeControl "180+2"]
[Date "2022.12.20"]
[WhiteClock "0:00:02"]
[BlackClock "0:00:18"]

1. d4 {[%clk 0:02:58]}  d5 {[%clk 0:02:58]} 2. c4 {[%clk 0:02:54]}  e6 {[%clk 0:02:58]} 3. Nf3 {[%clk 0:02:53]}  a6 {[%clk 0:02:58]} 4. Nbd2 {[%clk 0:02:50]}  dxc4 {[%clk 0:02:56]} 5. Nxc4 {[%clk 0:02:50]}  b5 {[%clk 0:02:56]} 6. Nce5 {[%clk 0:02:50]}  Bb7 {[%clk 0:02:54]} 7. e3 {[%clk 0:02:41]}  Nf6 {[%clk 0:02:54]} 8. Ng5 {[%clk 0:02:38]}  Ne4 {[%clk 0:02:47]} 9. Ngxf7 {[%clk 0:02:28]}  Qf6 {[%clk 0:02:28]} 10. f3 {[%clk 0:02:03]}  Qh4+ {[%clk 0:02:19]} 11. g3 {[%clk 0:01:59]}  Bb4+ {[%clk 0:02:19]} 12. Ke2 {[%clk 0:01:48]}  Nxg3+ {[%clk 0:02:18]} 13. hxg3 {[%clk 0:01:47]}  Qxh1 {[%clk 0:02:19]} 14. Nxh8 {[%clk 0:01:45]}  Qh2+ {[%clk 0:01:58]} 15. Kd3 {[%clk 0:01:38]}  c5 {[%clk 0:01:55]} 16. Bd2 {[%clk 0:01:29]}  Nc6 {[%clk 0:01:44]} 17. Nxc6 {[%clk 0:01:25]}  Bxc6 {[%clk 0:01:38]} 18. Bxb4 {[%clk 0:01:20]}  cxb4 {[%clk 0:01:35]} 19. Rc1 {[%clk 0:01:16]}  Rc8 {[%clk 0:01:09]} 20. Qb3 {[%clk 0:00:51]}  Qh6 {[%clk 0:01:01]} 21. Qxb4 {[%clk 0:00:39]}  Be4+ {[%clk 0:00:58]} 22. fxe4 {[%clk 0:00:20]}  Rxc1 {[%clk 0:00:58]} 23. Be2 {[%clk 0:00:21]}  Rc6 {[%clk 0:00:41]} 24. d5 {[%clk 0:00:20]}  exd5 {[%clk 0:00:36]} 25. exd5 {[%clk 0:00:21]}  Rc4 {[%clk 0:00:28]} 26. Qa5 {[%clk 0:00:19]}  Qh1 {[%clk 0:00:18]} 27. e4 {[%clk 0:00:02]}  Qxe4+ {[%clk 0:00:18]} 28. Kd2 {[%clk 0:00:02]}  Rc2+ {[%clk 0:00:18]} 0-1


[Site "https://www.chess.com"]

[Event "Titled Tuesday Blitz December 20 Early 2022"]
[White "Legendinunknown"]
[Black "ChessShop"]
[WhiteElo "2731"]
[BlackElo "2502"]
[Result "1/2-1/2"]
[Round "05"]
[TimeControl "180+2"]
[Date "2022.12.20"]
[WhiteClock "0:00:03"]
[BlackClock "0:00:17"]

1. d4 {[%clk 0:03:00]}  d6 {[%clk 0:02:57]} 2. Nf3 {[%clk 0:02:58]}  Nf6 {[%clk 0:02:57]} 3. Nc3 {[%clk 0:02:58]}  Nbd7 {[%clk 0:02:58]} 4. e4 {[%clk 0:02:57]}  e5 {[%clk 0:02:59]} 5. Bc4 {[%clk 0:02:54]}  Be7 {[%clk 0:02:59]} 6. h3 {[%clk 0:02:52]}  O-O {[%clk 0:02:59]} 7. O-O {[%clk 0:02:50]}  exd4 {[%clk 0:02:59]} 8. Nxd4 {[%clk 0:02:50]}  Ne5 {[%clk 0:03:00]} 9. Be2 {[%clk 0:02:49]}  Ng6 {[%clk 0:03:00]} 10. a4 {[%clk 0:02:48]}  c6 {[%clk 0:02:59]} 11. Kh1 {[%clk 0:02:47]}  Re8 {[%clk 0:02:59]} 12. f4 {[%clk 0:02:41]}  Bf8 {[%clk 0:02:59]} 13. Bd3 {[%clk 0:02:41]}  Qc7 {[%clk 0:02:57]} 14. Qf3 {[%clk 0:02:39]}  h5 {[%clk 0:02:54]} 15. Be3 {[%clk 0:02:36]}  Bd7 {[%clk 0:02:53]} 16. Rae1 {[%clk 0:02:34]}  a6 {[%clk 0:02:53]} 17. Nf5 {[%clk 0:02:31]}  b5 {[%clk 0:02:49]} 18. b4 {[%clk 0:02:07]}  Bc8 {[%clk 0:02:11]} 19. Bd4 {[%clk 0:01:53]}  Qd8 {[%clk 0:02:00]} 20. axb5 {[%clk 0:01:38]}  axb5 {[%clk 0:01:58]} 21. Ne2 {[%clk 0:01:28]}  h4 {[%clk 0:01:47]} 22. Ba1 {[%clk 0:01:15]}  Ra3 {[%clk 0:01:30]} 23. Ned4 {[%clk 0:01:14]}  Bb7 {[%clk 0:01:28]} 24. Nb3 {[%clk 0:01:11]}  d5 {[%clk 0:01:21]} 25. e5 {[%clk 0:01:09]}  Ne4 {[%clk 0:01:16]} 26. Rxe4 {[%clk 0:00:54]}  dxe4 {[%clk 0:01:17]} 27. Qxe4 {[%clk 0:00:55]}  Ba8 {[%clk 0:01:13]} 28. Nc5 {[%clk 0:00:44]}  Bxc5 {[%clk 0:00:50]} 29. bxc5 {[%clk 0:00:45]}  Qa5 {[%clk 0:00:50]} 30. Nd6 {[%clk 0:00:37]}  Rxa1 {[%clk 0:00:40]} 31. Nxe8 {[%clk 0:00:37]}  Rxf1+ {[%clk 0:00:38]} 32. Bxf1 {[%clk 0:00:38]}  Qa1 {[%clk 0:00:35]} 33. Kg1 {[%clk 0:00:31]}  Qc3 {[%clk 0:00:34]} 34. Bd3 {[%clk 0:00:26]}  Qxc5+ {[%clk 0:00:34]} 35. Kf1 {[%clk 0:00:25]}  Qa3 {[%clk 0:00:28]} 36. Nd6 {[%clk 0:00:25]}  c5 {[%clk 0:00:23]} 37. Qf5 {[%clk 0:00:20]}  Qc1+ {[%clk 0:00:23]} 38. Kf2 {[%clk 0:00:17]}  Qxf4+ {[%clk 0:00:23]} 39. Qxf4 {[%clk 0:00:16]}  Nxf4 {[%clk 0:00:24]} 40. Be4 {[%clk 0:00:15]}  Bxe4 {[%clk 0:00:22]} 41. Nxe4 {[%clk 0:00:16]}  Ng6 {[%clk 0:00:22]} 42. e6 {[%clk 0:00:14]}  fxe6 {[%clk 0:00:22]} 43. Nxc5 {[%clk 0:00:15]}  Kf7 {[%clk 0:00:22]} 44. Nd3 {[%clk 0:00:15]}  e5 {[%clk 0:00:20]} 45. Kf3 {[%clk 0:00:15]}  Ke6 {[%clk 0:00:20]} 46. Ke4 {[%clk 0:00:15]}  Kd6 {[%clk 0:00:19]} 47. c3 {[%clk 0:00:14]}  Ke6 {[%clk 0:00:18]} 48. Nc5+ {[%clk 0:00:13]}  Kf6 {[%clk 0:00:17]} 49. Nd3 {[%clk 0:00:14]}  Ke6 {[%clk 0:00:17]} 50. Ne1 {[%clk 0:00:13]}  Kd6 {[%clk 0:00:17]} 51. Kf5 {[%clk 0:00:12]}  Ne7+ {[%clk 0:00:16]} 52. Kg5 {[%clk 0:00:12]}  Nd5 {[%clk 0:00:16]} 53. Kxh4 {[%clk 0:00:12]}  Nxc3 {[%clk 0:00:17]} 54. Nc2 {[%clk 0:00:11]}  e4 {[%clk 0:00:17]} 55. Kg4 {[%clk 0:00:11]}  Ke5 {[%clk 0:00:18]} 56. h4 {[%clk 0:00:10]}  Nd5 {[%clk 0:00:18]} 57. h5 {[%clk 0:00:10]}  b4 {[%clk 0:00:19]} 58. Kg3 {[%clk 0:00:08]}  b3 {[%clk 0:00:19]} 59. Na3 {[%clk 0:00:08]}  Ne3 {[%clk 0:00:18]} 60. Kf2 {[%clk 0:00:08]}  Nc2 {[%clk 0:00:18]} 61. Nc4+ {[%clk 0:00:08]}  Kd4 {[%clk 0:00:18]} 62. Nb2 {[%clk 0:00:09]}  Ne3 {[%clk 0:00:17]} 63. g3 {[%clk 0:00:08]}  Ng4+ {[%clk 0:00:17]} 64. Ke2 {[%clk 0:00:08]}  Ne5 {[%clk 0:00:17]} 65. Na4 {[%clk 0:00:06]}  Nd3 {[%clk 0:00:17]} 66. Kd2 {[%clk 0:00:05]}  b2 {[%clk 0:00:17]} 67. Kc2 {[%clk 0:00:04]}  Ke3 {[%clk 0:00:18]} 68. Nc3 {[%clk 0:00:04]}  Kf3 {[%clk 0:00:18]} 69. g4 {[%clk 0:00:05]}  Kxg4 {[%clk 0:00:17]} 70. Nxe4 {[%clk 0:00:04]}  Kxh5 {[%clk 0:00:18]} 71. Nd2 {[%clk 0:00:05]}  Nf2 {[%clk 0:00:16]} 72. Kxb2 {[%clk 0:00:05]}  Kg4 {[%clk 0:00:17]} 73. Kc2 {[%clk 0:00:04]}  Kf4 {[%clk 0:00:18]} 74. Nf1 {[%clk 0:00:04]}  g5 {[%clk 0:00:18]} 75. Kd2 {[%clk 0:00:04]}  Kf3 {[%clk 0:00:18]} 76. Ne3 {[%clk 0:00:04]}  Ne4+ {[%clk 0:00:18]} 77. Kd3 {[%clk 0:00:04]}  Nc5+ {[%clk 0:00:19]} 78. Kd2 {[%clk 0:00:04]}  Nb3+ {[%clk 0:00:18]} 79. Kd3 {[%clk 0:00:04]}  Nc1+ {[%clk 0:00:18]} 80. Kd2 {[%clk 0:00:04]}  Ne2 {[%clk 0:00:18]} 81. Nf5 {[%clk 0:00:04]}  Nf4 {[%clk 0:00:18]} 82. Ne3 {[%clk 0:00:04]}  Ke4 {[%clk 0:00:18]} 83. Ng4 {[%clk 0:00:04]}  Nd5 {[%clk 0:00:18]} 84. Ke2 {[%clk 0:00:03]}  Kf4 {[%clk 0:00:18]} 85. Nh2 {[%clk 0:00:03]}  Kg3 {[%clk 0:00:18]} 86. Nf1+ {[%clk 0:00:02]}  Kg2 {[%clk 0:00:18]} 87. Nd2 {[%clk 0:00:03]}  g4 {[%clk 0:00:19]} 88. Ne4 {[%clk 0:00:03]}  Nf4+ {[%clk 0:00:19]} 89. Ke3 {[%clk 0:00:04]}  Nd5+ {[%clk 0:00:19]} 90. Kd4 {[%clk 0:00:04]}  Ne7 {[%clk 0:00:19]} 91. Ke5 {[%clk 0:00:04]}  Kf3 {[%clk 0:00:18]} 92. Ng5+ {[%clk 0:00:04]}  Kf2 {[%clk 0:00:18]} 93. Kf4 {[%clk 0:00:03]}  Ng6+ {[%clk 0:00:17]} 94. Kxg4 {[%clk 0:00:03]} 1/2-1/2


[Site "https://www.chess.com"]

[Event "Titled Tuesday Blitz December 20 Early 2022"]
[White "Levanovsky, Vladimir"]
[Black "manitodeplomo"]
[WhiteFideId "24119784"]
[WhiteElo "1869"]
[BlackElo "2639"]
[Result "0-1"]
[Round "05"]
[TimeControl "180+2"]
[Date "2022.12.20"]
[WhiteClock "0:00:03"]
[BlackClock "0:00:40"]

1. e4 {[%clk 0:03:00]}  c5 {[%clk 0:02:59]} 2. Nf3 {[%clk 0:03:00]}  Nc6 {[%clk 0:02:58]} 3. d4 {[%clk 0:02:56]}  cxd4 {[%clk 0:02:59]} 4. Nxd4 {[%clk 0:02:57]}  e6 {[%clk 0:02:57]} 5. Nc3 {[%clk 0:02:48]}  a6 {[%clk 0:02:57]} 6. Be3 {[%clk 0:02:34]}  Na5 {[%clk 0:02:57]} 7. Be2 {[%clk 0:02:14]}  b5 {[%clk 0:02:57]} 8. a3 {[%clk 0:02:11]}  Bb7 {[%clk 0:02:57]} 9. O-O {[%clk 0:02:09]}  Rc8 {[%clk 0:02:57]} 10. Qd2 {[%clk 0:01:41]}  Nc4 {[%clk 0:02:50]} 11. Bxc4 {[%clk 0:01:38]}  Rxc4 {[%clk 0:02:51]} 12. Rad1 {[%clk 0:01:34]}  Qc7 {[%clk 0:02:51]} 13. Rfe1 {[%clk 0:01:24]}  Nf6 {[%clk 0:02:49]} 14. Bf4 {[%clk 0:01:05]}  Qc8 {[%clk 0:01:59]} 15. e5 {[%clk 0:00:57]}  Nd5 {[%clk 0:01:57]} 16. Nxd5 {[%clk 0:00:54]}  Bxd5 {[%clk 0:01:58]} 17. c3 {[%clk 0:00:53]}  Qb7 {[%clk 0:01:18]} 18. f3 {[%clk 0:00:25]}  Bc5 {[%clk 0:01:16]} 19. Be3 {[%clk 0:00:21]}  Bxd4 {[%clk 0:01:13]} 20. Bxd4 {[%clk 0:00:21]}  O-O {[%clk 0:01:14]} 21. h4 {[%clk 0:00:13]}  Rfc8 {[%clk 0:01:12]} 22. h5 {[%clk 0:00:13]}  h6 {[%clk 0:01:10]} 23. Kf2 {[%clk 0:00:11]}  Qc7 {[%clk 0:01:03]} 24. Qf4 {[%clk 0:00:06]}  Qd8 {[%clk 0:01:03]} 25. g4 {[%clk 0:00:06]}  Qg5 {[%clk 0:01:01]} 26. Qxg5 {[%clk 0:00:05]}  hxg5 {[%clk 0:01:02]} 27. Be3 {[%clk 0:00:05]}  f6 {[%clk 0:01:02]} 28. Bd4 {[%clk 0:00:05]}  Kf7 {[%clk 0:01:01]} 29. h6 {[%clk 0:00:04]}  gxh6 {[%clk 0:01:01]} 30. exf6 {[%clk 0:00:04]}  a5 {[%clk 0:01:00]} 31. Rh1 {[%clk 0:00:04]}  Kg6 {[%clk 0:00:58]} 32. b4 {[%clk 0:00:04]}  axb4 {[%clk 0:00:54]} 33. axb4 {[%clk 0:00:05]}  d6 {[%clk 0:00:54]} 34. Rh5 {[%clk 0:00:05]}  e5 {[%clk 0:00:52]} 35. Be3 {[%clk 0:00:06]}  Ba8 {[%clk 0:00:47]} 36. Rxd6 {[%clk 0:00:05]}  Rxc3 {[%clk 0:00:43]} 37. Rd7 {[%clk 0:00:04]}  Rc2+ {[%clk 0:00:40]} 38. Kg3 {[%clk 0:00:04]}  R8c3 {[%clk 0:00:40]} 39. Bc5 {[%clk 0:00:03]}  Rxf3# {[%clk 0:00:40]} 0-1


[Site "https://www.chess.com"]

[Event "Titled Tuesday Blitz December 20 Early 2022"]
[White "Liyanage, Ranindu Dilshan"]
[Black "Crone, Stephan"]
[WhiteFideId "9915834"]
[BlackFideId "4670175"]
[WhiteElo "2342"]
[BlackElo "1860"]
[Result "1-0"]
[Round "05"]
[TimeControl "180+2"]
[Date "2022.12.20"]
[WhiteClock "0:01:35"]
[BlackClock "0:00:54"]

1. e4 {[%clk 0:02:56]}  g6 {[%clk 0:03:00]} 2. d4 {[%clk 0:02:54]}  Bg7 {[%clk 0:03:00]} 3. Nc3 {[%clk 0:02:55]}  d6 {[%clk 0:03:00]} 4. Nf3 {[%clk 0:02:56]}  Nf6 {[%clk 0:03:00]} 5. Be2 {[%clk 0:02:55]}  O-O {[%clk 0:03:00]} 6. O-O {[%clk 0:02:55]}  Bg4 {[%clk 0:03:00]} 7. h3 {[%clk 0:02:45]}  Bxf3 {[%clk 0:03:01]} 8. Bxf3 {[%clk 0:02:46]}  e5 {[%clk 0:03:00]} 9. Be3 {[%clk 0:02:35]}  Nc6 {[%clk 0:02:58]} 10. dxe5 {[%clk 0:02:35]}  dxe5 {[%clk 0:02:57]} 11. Nd5 {[%clk 0:02:30]}  Nxd5 {[%clk 0:02:55]} 12. exd5 {[%clk 0:02:30]}  Nd4 {[%clk 0:02:56]} 13. Be4 {[%clk 0:01:56]}  f5 {[%clk 0:02:54]} 14. Bd3 {[%clk 0:01:56]}  Qxd5 {[%clk 0:02:36]} 15. c3 {[%clk 0:01:56]}  e4 {[%clk 0:01:51]} 16. Bc2 {[%clk 0:01:45]}  Nf3+ {[%clk 0:01:16]} 17. gxf3 {[%clk 0:01:42]}  Qxd1 {[%clk 0:01:01]} 18. Raxd1 {[%clk 0:01:43]}  exf3 {[%clk 0:01:01]} 19. Rd7 {[%clk 0:01:42]}  Be5 {[%clk 0:00:55]} 20. Re1 {[%clk 0:01:37]}  Bd6 {[%clk 0:00:54]} 21. Bb3+ {[%clk 0:01:35]} 1-0


[Site "https://www.chess.com"]

[Event "Titled Tuesday Blitz December 20 Early 2022"]
[White "Makswolf200817"]
[Black "AvitalBor"]
[WhiteElo "2651"]
[BlackElo "2816"]
[Result "0-1"]
[Round "05"]
[TimeControl "180+2"]
[Date "2022.12.20"]
[WhiteClock "0:00:57"]
[BlackClock "0:00:56"]

1. d4 {[%clk 0:03:00]}  Nf6 {[%clk 0:02:59]} 2. c4 {[%clk 0:03:00]}  g6 {[%clk 0:02:59]} 3. g3 {[%clk 0:02:58]}  c5 {[%clk 0:02:58]} 4. d5 {[%clk 0:02:57]}  Bg7 {[%clk 0:02:58]} 5. Bg2 {[%clk 0:02:56]}  O-O {[%clk 0:02:58]} 6. Nc3 {[%clk 0:02:57]}  d6 {[%clk 0:02:58]} 7. Nf3 {[%clk 0:02:56]}  a6 {[%clk 0:02:57]} 8. O-O {[%clk 0:02:56]}  b5 {[%clk 0:02:57]} 9. cxb5 {[%clk 0:02:54]}  axb5 {[%clk 0:02:58]} 10. Nxb5 {[%clk 0:02:54]}  Ba6 {[%clk 0:02:57]} 11. Nc3 {[%clk 0:02:50]}  Nbd7 {[%clk 0:02:58]} 12. Re1 {[%clk 0:02:45]}  Ng4 {[%clk 0:02:48]} 13. Qc2 {[%clk 0:02:18]}  Qb6 {[%clk 0:02:40]} 14. h3 {[%clk 0:02:03]}  Nge5 {[%clk 0:02:37]} 15. Nd2 {[%clk 0:02:03]}  Rfb8 {[%clk 0:02:31]} 16. Kh2 {[%clk 0:01:49]}  h6 {[%clk 0:02:27]} 17. b3 {[%clk 0:01:36]}  c4 {[%clk 0:02:10]} 18. f4 {[%clk 0:01:32]}  cxb3 {[%clk 0:02:08]} 19. axb3 {[%clk 0:01:32]}  Qf2 {[%clk 0:01:09]} 20. Bb2 {[%clk 0:01:25]}  Rc8 {[%clk 0:01:04]} 21. Nde4 {[%clk 0:01:19]}  Nf3+ {[%clk 0:00:58]} 22. Kh1 {[%clk 0:01:13]}  Nxe1 {[%clk 0:00:58]} 23. Qd2 {[%clk 0:00:57]}  Qxg2# {[%clk 0:00:56]} 0-1


[Site "https://www.chess.com"]

[Event "Titled Tuesday Blitz December 20 Early 2022"]
[White "Malich, Burkhard, Dr."]
[Black "Martinez Ramirez, Lennis"]
[WhiteFideId "4611330"]
[BlackFideId "3509079"]
[WhiteElo "2323"]
[BlackElo "2426"]
[Result "0-1"]
[Round "05"]
[TimeControl "180+2"]
[Date "2022.12.20"]
[WhiteClock "0:00:05"]
[BlackClock "0:00:50"]

1. d4 {[%clk 0:03:00]}  d5 {[%clk 0:02:59]} 2. c4 {[%clk 0:03:01]}  e6 {[%clk 0:02:56]} 3. Nf3 {[%clk 0:03:01]}  Nf6 {[%clk 0:02:56]} 4. g3 {[%clk 0:03:02]}  dxc4 {[%clk 0:02:56]} 5. Bg2 {[%clk 0:03:01]}  a6 {[%clk 0:02:57]} 6. O-O {[%clk 0:03:01]}  Nc6 {[%clk 0:02:57]} 7. e3 {[%clk 0:03:01]}  Rb8 {[%clk 0:02:57]} 8. Qe2 {[%clk 0:02:58]}  b5 {[%clk 0:02:55]} 9. b3 {[%clk 0:02:49]}  cxb3 {[%clk 0:02:20]} 10. axb3 {[%clk 0:02:50]}  Bb7 {[%clk 0:02:20]} 11. Bb2 {[%clk 0:02:44]}  Nb4 {[%clk 0:02:17]} 12. Rc1 {[%clk 0:02:36]}  Bd6 {[%clk 0:02:15]} 13. Nbd2 {[%clk 0:02:10]}  Ne4 {[%clk 0:02:09]} 14. Ba3 {[%clk 0:01:46]}  Nxd2 {[%clk 0:02:07]} 15. Nxd2 {[%clk 0:01:14]}  Bxg2 {[%clk 0:02:08]} 16. Kxg2 {[%clk 0:01:15]}  a5 {[%clk 0:02:08]} 17. Ne4 {[%clk 0:01:14]}  O-O {[%clk 0:02:07]} 18. Nc5 {[%clk 0:01:09]}  e5 {[%clk 0:02:00]} 19. Bxb4 {[%clk 0:01:08]}  axb4 {[%clk 0:02:00]} 20. Qd2 {[%clk 0:00:22]}  exd4 {[%clk 0:01:27]} 21. Qxd4 {[%clk 0:00:20]}  Re8 {[%clk 0:01:27]} 22. Qxb4 {[%clk 0:00:19]}  Re5 {[%clk 0:01:28]} 23. Qd4 {[%clk 0:00:16]}  Rh5 {[%clk 0:01:09]} 24. Ne4 {[%clk 0:00:14]}  Qc8 {[%clk 0:01:03]} 25. h4 {[%clk 0:00:12]}  Be5 {[%clk 0:01:03]} 26. Qd1 {[%clk 0:00:09]}  Qf5 {[%clk 0:00:55]} 27. Nc5 {[%clk 0:00:06]}  Bxa1 {[%clk 0:00:53]} 28. g4 {[%clk 0:00:04]}  Qd5+ {[%clk 0:00:53]} 29. e4 {[%clk 0:00:04]}  Qxd1 {[%clk 0:00:50]} 30. Rxd1 {[%clk 0:00:05]}  Rxc5 {[%clk 0:00:50]} 0-1


[Site "https://www.chess.com"]

[Event "Titled Tuesday Blitz December 20 Early 2022"]
[White "MatthewG-p4p"]
[Black "Flawless_Fighter"]
[WhiteElo "2825"]
[BlackElo "2622"]
[Result "1-0"]
[Round "05"]
[TimeControl "180+2"]
[Date "2022.12.20"]
[WhiteClock "0:00:57"]
[BlackClock "0:00:16"]

1. f4 {[%clk 0:03:00]}  d5 {[%clk 0:02:59]} 2. Nf3 {[%clk 0:03:01]}  g6 {[%clk 0:02:56]} 3. g3 {[%clk 0:03:01]}  Bg7 {[%clk 0:02:56]} 4. Bg2 {[%clk 0:03:02]}  c5 {[%clk 0:02:54]} 5. O-O {[%clk 0:03:02]}  Nc6 {[%clk 0:02:55]} 6. d3 {[%clk 0:03:02]}  Nf6 {[%clk 0:02:53]} 7. Nc3 {[%clk 0:03:02]}  d4 {[%clk 0:02:46]} 8. Na4 {[%clk 0:03:02]}  Qd6 {[%clk 0:02:43]} 9. c4 {[%clk 0:02:56]}  b6 {[%clk 0:02:37]} 10. a3 {[%clk 0:02:56]}  Bb7 {[%clk 0:02:35]} 11. Rb1 {[%clk 0:02:56]}  O-O {[%clk 0:02:30]} 12. Bd2 {[%clk 0:02:35]}  Ng4 {[%clk 0:01:47]} 13. b4 {[%clk 0:02:33]}  cxb4 {[%clk 0:01:45]} 14. axb4 {[%clk 0:02:33]}  Rad8 {[%clk 0:01:26]} 15. c5 {[%clk 0:01:52]}  bxc5 {[%clk 0:01:24]} 16. Nxc5 {[%clk 0:01:42]}  Ba8 {[%clk 0:01:23]} 17. Qa4 {[%clk 0:01:41]}  Ne3 {[%clk 0:01:00]} 18. Bxe3 {[%clk 0:01:41]}  dxe3 {[%clk 0:01:00]} 19. Rfc1 {[%clk 0:01:40]}  Rb8 {[%clk 0:00:50]} 20. b5 {[%clk 0:01:28]}  Nd4 {[%clk 0:00:33]} 21. Nxd4 {[%clk 0:01:28]}  Bxg2 {[%clk 0:00:29]} 22. Kxg2 {[%clk 0:01:25]}  Bxd4 {[%clk 0:00:27]} 23. Ne4 {[%clk 0:01:18]}  Qd7 {[%clk 0:00:20]} 24. Rc4 {[%clk 0:01:06]}  Bb6 {[%clk 0:00:20]} 25. Rbc1 {[%clk 0:01:06]}  Qd5 {[%clk 0:00:17]} 26. Kg1 {[%clk 0:01:01]}  h6 {[%clk 0:00:17]} 27. Rc6 {[%clk 0:00:58]}  e5 {[%clk 0:00:16]} 28. Nf6+ {[%clk 0:00:57]} 1-0


[Site "https://www.chess.com"]